bitfinex-derivatives/quotes_BTCF0:USTF0_20250108
["timestamp","ask_amount","ask_price","bid_price","bid_amount"]
[1736319560142,0.15648137,95372.0,95360.0,0.3608]
[1736319560442,0.15648137,95367.0,95350.0,0.10563111]
[1736319560749,0.15648137,95371.0,95350.0,0.10563111]
[1736319561046,0.15678334,95366.0,95350.0,0.10563111]
[1736319561347,0.15678334,95370.0,95350.0,0.10563111]
[1736319561544,0.15678334,95365.0,95350.0,0.10563111]
[1736319561944,0.15795898,95370.0,95350.0,0.10563111]
[1736319562343,0.3608,95374.0,95350.0,0.10563111]
[1736319562344,0.15795898,95364.0,95350.0,0.10563111]
[1736319562539,0.15795898,95369.0,95350.0,0.10563111]
[1736319562741,0.15795898,95370.0,95350.0,0.10563111]
[1736319562947,0.15775855,95363.0,95350.0,0.11860677]
[1736319563139,0.15775855,95368.0,95350.0,0.11860677]
[1736319563537,0.15775855,95362.0,95350.0,0.11860677]
[1736319563944,0.15675865,95367.0,95359.0,0.3608]
[1736319564243,0.15675865,95361.0,95359.0,0.3608]
[1736319564544,0.15675865,95367.0,95359.0,0.3608]
[1736319564751,0.15675865,95360.0,95350.0,0.17105277]
[1736319565139,0.3608,95374.0,95356.0,0.3608]
[1736319565140,0.15684582,95366.0,95356.0,0.3608]
[1736319565341,0.15684582,95367.0,95360.0,0.10563111]
[1736319565544,0.15684582,95365.0,95356.0,0.3608]
[1736319565942,0.15684582,95366.0,95356.0,0.3608]
[1736319566137,0.1579061,95371.0,95356.0,0.3608]
[1736319566344,0.1579061,95365.0,95364.0,0.3608]
[1736319566545,0.1579061,95366.0,95364.0,0.3608]
[1736319566739,0.3608,95374.0,95366.0,0.052437]
[1736319566740,0.06096733,95372.0,95366.0,0.052437]
[1736319566944,0.3608,95374.0,95366.0,0.052437]
[1736319567147,0.3067,95379.0,95366.0,0.052437]
[1736319567148,0.15684748,95369.0,95366.0,0.052437]
[1736319567343,0.15684748,95371.0,95366.0,0.052437]
[1736319567546,0.15384748,95377.0,95371.0,0.052434]
[1736319567748,0.1,95380.0,95371.0,0.052434]
[1736319568145,0.15630466,95376.0,95371.0,0.052434]
[1736319568544,0.1,95380.0,95371.0,0.052434]
[1736319568845,0.15630466,95375.0,95372.0,0.3608]
[1736319569052,0.15808305,95378.0,95372.0,0.3608]
[1736319569243,0.1,95380.0,95372.0,0.3608]
[1736319569442,0.15808305,95374.0,95372.0,0.3608]
[1736319569645,0.15808305,95377.0,95376.0,0.052432]
[1736319569848,0.15808305,95379.0,95376.0,0.052432]
[1736319570049,0.15743451,95377.0,95376.0,0.052432]
[1736319570351,0.1,95380.0,95376.0,0.052432]
[1736319570352,0.15743451,95378.0,95376.0,0.052432]
[1736319570652,0.12246451,95377.0,95376.0,0.052432]
[1736319570953,0.04136403,95380.0,95376.0,0.3608]
[1736319571148,0.04136403,95380.0,95377.0,0.052431]
[1736319571149,0.15761697,95378.0,95377.0,0.052431]
[1736319571349,0.04136403,95380.0,95379.0,0.05243]
[1736319571855,0.198981,95380.0,95379.0,0.05243]
[1736319572353,0.198981,95380.0,95366.0,0.6529]
[1736319572552,0.198981,95380.0,95366.0,0.3608]
[1736319572850,0.8784,95379.0,95366.0,0.37386174]
[1736319573349,0.15656644,95378.0,95366.0,0.37386174]
[1736319574448,0.3608,95371.0,95366.0,0.01306174]
[1736319574639,0.3608,95371.0,95357.0,0.3608]
[1736319574844,0.15663375,95370.0,95357.0,0.3608]
[1736319575937,0.26226486,95370.0,95357.0,0.3608]
[1736319577647,0.15663375,95370.0,95357.0,0.3608]
[1736319578855,0.26226486,95370.0,95357.0,0.3608]
[1736319579150,0.26226486,95370.0,95355.0,0.01300399]
[1736319579354,0.3608,95360.0,95348.0,0.3608]
[1736319579653,0.873,95359.0,95348.0,0.3608]
[1736319579852,1.03042978,95359.0,95348.0,0.3608]
[1736319580854,1.03042978,95359.0,95348.0,0.3734738]
[1736319586956,0.3608,95354.0,95348.0,0.0126738]
[1736319587256,0.3608,95354.0,95341.0,0.4708]
[1736319587453,0.10563111,95351.0,95341.0,0.47024]
[1736319587956,0.15698523,95350.0,95341.0,0.47024]
[1736319588158,0.15698523,95350.0,95341.0,0.48328789]
[1736319588859,0.3608,95342.0,95341.0,0.01304789]
[1736319589153,0.51727503,95342.0,95316.0,0.6638]
[1736319589357,0.51727503,95342.0,95325.0,0.3608]
[1736319589557,0.51727503,95342.0,95335.0,0.01274276]
[1736319589757,0.56972503,95342.0,95325.0,0.3608]
[1736319590464,0.56972503,95342.0,95325.0,0.37341245]
[1736319592460,0.51727503,95342.0,95325.0,0.37341245]
[1736319593359,0.51727503,95342.0,95333.0,0.3608]
[1736319595858,0.15647503,95342.0,95334.0,0.2822]
[1736319596062,0.15647503,95342.0,95341.0,0.3608]
[1736319596249,0.15727087,95344.0,95341.0,0.3608]
[1736319596450,0.15727087,95342.0,95341.0,0.3608]
[1736319596961,0.15727087,95343.0,95341.0,0.3608]
[1736319597355,0.1574446,95342.0,95341.0,0.3608]
[1736319597756,0.1574446,95349.0,95341.0,0.3608]
[1736319598055,0.15723664,95342.0,95341.0,0.3608]
[1736319598263,0.15723664,95342.0,95334.0,0.2822]
[1736319598460,0.3608,95344.0,95334.0,0.2822]
[1736319598659,0.15723664,95343.0,95334.0,0.2822]
[1736319600457,0.46643111,95344.0,95334.0,0.2822]
[1736319600662,0.3608,95344.0,95334.0,0.2822]
[1736319600863,0.15637998,95342.0,95334.0,0.2822]
[1736319601064,0.15637998,95343.0,95334.0,0.2822]
[1736319601260,0.46643111,95344.0,95334.0,0.2822]
[1736319601461,0.3608,95335.0,95319.0,0.3608]
[1736319601765,0.45998087,95334.0,95319.0,0.3608]
[1736319601959,0.10563111,95330.0,95319.0,0.3608]
[1736319602163,0.76132087,95334.0,95319.0,0.37361115]
[1736319602357,0.15719733,95329.0,95319.0,0.37361115]
[1736319602556,0.15719733,95333.0,95319.0,0.37361115]
[1736319602964,0.15719733,95328.0,95320.0,0.10563111]
[1736319603273,0.15752867,95332.0,95327.0,0.3608]
[1736319603564,0.15752867,95334.0,95327.0,0.3608]
[1736319603766,0.15752867,95331.0,95330.0,0.413257]
[1736319604062,0.6046,95359.0,95330.0,0.3608]
[1736319604063,0.12349972,95343.0,95330.0,0.3608]
[1736319604266,0.20563111,95360.0,95342.0,0.3608]
[1736319604452,0.10808905,95354.0,95351.0,0.3608]
[1736319604652,0.1,95360.0,95351.0,0.3608]
[1736319604853,0.15701972,95359.0,95352.0,0.2824]
[1736319605059,0.1,95360.0,95352.0,0.2824]
[1736319605464,0.15676238,95358.0,95352.0,0.2824]
[1736319605662,0.15676238,95359.0,95352.0,0.5663]
[1736319605866,0.1,95360.0,95352.0,0.5663]
[1736319606259,0.15701766,95358.0,95352.0,0.5663]
[1736319606562,0.1,95360.0,95352.0,0.5663]
[1736319606765,0.15701766,95357.0,95352.0,0.5663]
[1736319606957,0.15701766,95358.0,95352.0,0.5663]
[1736319607154,0.1,95360.0,95351.0,0.37366018]
[1736319607361,0.15766268,95356.0,95351.0,0.37366018]
[1736319607564,0.15766268,95357.0,95351.0,0.37366018]
[1736319607867,0.15766268,95355.0,95351.0,0.37366018]
[1736319608262,0.15694329,95357.0,95351.0,0.37366018]
[1736319608458,0.15694329,95354.0,95351.0,0.37366018]
[1736319608867,0.15694329,95355.0,95351.0,0.37366018]
[1736319609165,0.15694329,95357.0,95342.0,0.3608]
[1736319609166,0.15737761,95353.0,95342.0,0.3608]
[1736319609357,0.15737761,95354.0,95342.0,0.3608]
[1736319609358,0.10563111,95352.0,95342.0,0.3608]
[1736319609564,0.3608,95349.0,95342.0,0.01262831]
[1736319609764,0.3011,95348.0,95335.0,0.30656]
[1736319609969,0.3608,95341.0,95335.0,0.31921563]
[1736319610171,0.3608,95341.0,95335.0,0.31865563]
[1736319610464,0.15835971,95340.0,95337.0,0.3608]
[1736319610866,0.15835971,95347.0,95335.0,0.01265563]
[1736319611067,0.15835971,95347.0,95337.0,0.3608]
[1736319611261,0.15806737,95339.0,95337.0,0.3608]
[1736319611463,0.15806737,95346.0,95337.0,0.3608]
[1736319611663,0.15806737,95338.0,95337.0,0.3608]
[1736319612071,0.3011,95348.0,95337.0,0.3608]
[1736319612273,0.15727793,95338.0,95337.0,0.3608]
[1736319612468,0.15727793,95338.0,95334.0,0.3608]
[1736319612673,0.3608,95342.0,95334.0,0.3608]
[1736319612866,0.15727793,95341.0,95334.0,0.3608]
[1736319613065,0.15703697,95337.0,95334.0,0.3608]
[1736319613261,0.3608,95342.0,95334.0,0.3608]
[1736319613573,0.15703697,95336.0,95334.0,0.3608]
[1736319613973,0.3011,95348.0,95334.0,0.3608]
[1736319613974,0.15670854,95339.0,95334.0,0.3608]
[1736319614278,0.15670854,95335.0,95334.0,0.3608]
[1736319614665,0.3011,95348.0,95334.0,0.3608]
[1736319614863,0.3011,95348.0,95336.0,0.3608]
[1736319614864,0.15670854,95339.0,95336.0,0.3608]
[1736319615066,0.15670854,95346.0,95336.0,0.7216]
[1736319615371,0.1,95360.0,95345.0,0.3608]
[1736319615588,0.1,95360.0,95355.0,0.3608]
[1736319615765,0.15822455,95359.0,95355.0,0.3608]
[1736319618976,0.15822455,95359.0,95355.0,0.37304353]
[1736319621672,0.15822455,95359.0,95358.0,0.3608]
[1736319621673,0.01675821,95359.0,95358.0,0.3608]
[1736319621874,0.00760756,95359.0,95358.0,0.3608]
[1736319623673,0.08767976,95360.0,95358.0,0.3608]
[1736319623876,0.2932,95393.0,95358.0,0.6608]
[1736319623877,0.15695448,95359.0,95358.0,0.6608]
[1736319624077,0.2932,95393.0,95359.0,0.3057]
[1736319624279,0.2932,95393.0,95379.0,0.3608]
[1736319624671,0.19832687,95380.0,95379.0,0.3608]
[1736319627174,0.19832687,95380.0,95379.0,0.37288094]
[1736319627382,0.17559401,95380.0,95379.0,0.37288094]
[1736319627875,0.16349401,95380.0,95379.0,0.37288094]
[1736319628099,0.09049,95400.0,95379.0,0.37288094]
[1736319628285,0.08754159,95400.0,95398.0,0.3608]
[1736319628492,0.15770716,95399.0,95398.0,0.3608]
[1736319629076,0.15770716,95399.0,95390.0,0.3608]
[1736319629478,0.3608,95395.0,95390.0,0.01173071]
[1736319629686,0.3015,95394.0,95379.0,0.3608]
[1736319629885,0.4587729,95394.0,95380.0,0.10563111]
[1736319630083,0.2947,95393.0,95380.0,0.10563111]
[1736319630472,0.15818976,95392.0,95380.0,0.10563111]
[1736319630879,0.1432045,95392.0,95390.0,0.3608]
[1736319631083,0.1432045,95392.0,95391.0,0.2818]
[1736319631285,0.15807503,95394.0,95391.0,0.2818]
[1736319631486,0.15807503,95392.0,95391.0,0.2818]
[1736319631896,0.15807503,95393.0,95391.0,0.2818]
[1736319632202,0.15805358,95392.0,95391.0,0.2818]
[1736319632384,0.08754159,95400.0,95391.0,0.29388782]
[1736319632584,0.08754159,95400.0,95398.0,0.3608]
[1736319632785,0.15805358,95399.0,95398.0,0.3608]
[1736319633785,0.11606466,95399.0,95398.0,0.3608]
[1736319636190,0.07783296,95399.0,95398.0,0.3608]
[1736319636888,0.0356482,95399.0,95398.0,0.3608]
[1736319637284,0.00324778,95400.0,95398.0,0.3608]
[1736319637487,0.00324778,95400.0,95399.0,0.3024]
[1736319637985,0.1609547,95400.0,95399.0,0.3024]
[1736319638390,0.30304,95429.0,95399.0,0.3024]
[1736319638587,0.3024,95429.0,95419.0,0.3608]
[1736319638787,0.2898,95428.0,95419.0,0.3608]
[1736319638990,0.25682878,95420.0,95419.0,0.3608]
[1736319639490,0.1510106,95420.0,95419.0,0.6608]
[1736319639691,0.1252406,95420.0,95419.0,0.6608]
[1736319639887,0.1218406,95420.0,95419.0,0.6608]
[1736319640088,0.01192001,95420.0,95419.0,0.6608]
[1736319640987,0.01192001,95420.0,95419.0,0.67272298]
[1736319641185,0.05480995,95440.0,95419.0,0.37272298]
[1736319641388,0.1,95460.0,95439.0,0.7216]
[1736319641590,0.1,95460.0,95447.0,0.3608]
[1736319641892,0.3608,95453.0,95440.0,0.0006]
[1736319642095,0.3608,95453.0,95439.0,0.3608]
[1736319642096,0.10563111,95450.0,95439.0,0.3608]
[1736319642397,0.15767602,95449.0,95434.0,0.4706]
[1736319642700,0.15767602,95449.0,95438.0,0.3608]
[1736319642902,0.15767602,95451.0,95439.0,0.10563111]
[1736319643194,0.15700695,95448.0,95438.0,0.3608]
[1736319643398,0.8738,95447.0,95438.0,0.3608]
[1736319643693,1.03080695,95447.0,95438.0,0.3608]
[1736319644001,0.8738,95447.0,95438.0,0.3608]
[1736319644185,0.15714127,95446.0,95438.0,0.3608]
[1736319646512,0.3608,95440.0,95420.0,0.00209599]
[1736319646800,0.3608,95421.0,95397.0,0.3608]
[1736319647006,0.38643111,95420.0,95397.0,0.3608]
[1736319647206,0.71693564,95420.0,95400.0,0.10563111]
[1736319648004,0.71693564,95420.0,95417.0,0.3608]
[1736319648206,0.71693564,95420.0,95410.0,0.10563111]
[1736319649621,0.71693564,95420.0,95400.0,0.10563111]
[1736319649807,0.3608,95416.0,95400.0,0.10563111]
[1736319650204,0.15698457,95415.0,95400.0,0.10563111]
[1736319650408,0.3608,95407.0,95397.0,0.01228776]
[1736319650723,0.15698457,95406.0,95400.0,0.10563111]
[1736319651515,0.2832,95415.0,95401.0,0.3608]
[1736319651715,0.15801793,95405.0,95401.0,0.3608]
[1736319651924,0.2832,95415.0,95401.0,0.3608]
[1736319651925,0.15801793,95406.0,95401.0,0.3608]
[1736319652116,0.2832,95415.0,95401.0,0.3608]
[1736319652317,0.2832,95415.0,95414.0,0.3608]
[1736319652521,0.56054,95420.0,95414.0,0.3608]
[1736319652823,0.15621205,95415.0,95414.0,0.3608]
[1736319653125,0.56054,95420.0,95414.0,0.3608]
[1736319653427,0.15722591,95415.0,95414.0,0.3608]
[1736319653831,0.15722591,95419.0,95414.0,0.37273672]
[1736319654130,0.15722591,95415.0,95414.0,0.37273672]
[1736319654321,0.15666075,95418.0,95414.0,0.37273672]
[1736319654829,0.15666075,95415.0,95414.0,0.37273672]
[1736319655130,0.57384,95436.0,95414.0,0.37273672]
[1736319655131,0.12247977,95417.0,95414.0,0.37273672]
[1736319655338,0.15644076,95415.0,95414.0,0.37273672]
[1736319655625,0.15644076,95416.0,95414.0,0.37273672]
[1736319655830,0.15644076,95415.0,95414.0,0.37273672]
[1736319656014,0.15644076,95432.0,95414.0,0.37273672]
[1736319656217,0.15644076,95432.0,95431.0,0.3608]
[1736319656414,0.57384,95436.0,95431.0,0.3608]
[1736319656622,0.15822508,95432.0,95431.0,0.3608]
[1736319656932,0.13258552,95433.0,95432.0,0.052401]
[1736319657123,0.59,95455.0,95449.0,0.052391]
[1736319657425,0.45934304,95454.0,95449.0,0.052391]
[1736319658027,0.15764304,95454.0,95453.0,0.052389]
[1736319658629,0.28012592,95475.0,95468.0,0.052381]
[1736319658828,0.27928592,95475.0,95474.0,0.3608]
[1736319659135,0.43543955,95475.0,95474.0,0.3608]
[1736319659517,0.43543955,95475.0,95462.0,0.3608]
[1736319659724,0.3608,95470.0,95460.0,0.57611111]
[1736319660033,0.3608,95470.0,95463.0,0.052384]
[1736319660225,0.15615363,95469.0,95463.0,0.052384]
[1736319660430,0.15615363,95469.0,95460.0,0.47048]
[1736319660726,0.15615363,95469.0,95451.0,0.01187007]
[1736319660727,0.3608,95462.0,95451.0,0.01187007]
[1736319660924,0.3608,95462.0,95440.0,0.10563111]
[1736319661130,0.10563111,95460.0,95435.0,0.052399]
[1736319661329,0.10563111,95460.0,95434.0,0.46984]
[1736319661330,0.15659735,95461.0,95451.0,0.3608]
[1736319661524,0.15729049,95459.0,95451.0,0.3608]
[1736319661725,0.15729049,95464.0,95451.0,0.3608]
[1736319661933,0.15729049,95460.0,95451.0,0.3608]
[1736319662122,0.15729049,95458.0,95451.0,0.3608]
[1736319662319,0.1255908,95463.0,95453.0,0.3608]
[1736319662521,0.2903,95479.0,95462.0,0.413184]
[1736319662829,0.2903,95479.0,95466.0,0.052382]
[1736319662830,0.1561668,95468.0,95466.0,0.052382]
[1736319663037,0.1561668,95474.0,95465.0,0.10563111]
[1736319663038,0.1561668,95474.0,95470.0,0.05238]
[1736319663231,0.15624973,95467.0,95462.0,0.3608]
[1736319663529,0.3608,95466.0,95442.0,0.3608]
[1736319663729,0.7216,95449.0,95436.0,0.18764461]
[1736319664141,0.3608,95437.0,95436.0,0.18764461]
[1736319664323,0.3608,95437.0,95430.0,0.25139882]
[1736319664523,0.51881317,95437.0,95427.0,0.10563111]
[1736319664932,0.51881317,95437.0,95420.0,0.46643111]
[1736319665132,0.51881317,95437.0,95429.0,0.052402]
[1736319665321,0.51881317,95437.0,95420.0,0.46643111]
[1736319665524,0.51881317,95437.0,95421.0,0.052406]
[1736319665734,0.51881317,95437.0,95420.0,0.47912281]
[1736319665937,0.51881317,95437.0,95420.0,0.47856281]
[1736319666134,0.51881317,95437.0,95421.0,0.052407]
[1736319666436,0.51881317,95437.0,95420.0,0.3734917]
[1736319666631,0.51881317,95437.0,95420.0,0.47856281]
[1736319666831,0.15801317,95437.0,95436.0,0.052399]
[1736319667237,0.15626182,95447.0,95429.0,0.3608]
[1736319667423,0.59574,95448.0,95437.0,0.10563111]
[1736319667731,0.15626182,95447.0,95446.0,0.052393]
[1736319668522,0.15626182,95447.0,95446.0,0.413193]
[1736319671239,0.15626182,95447.0,95446.0,0.3608]
[1736319671539,0.15626182,95447.0,95439.0,0.00064]
[1736319671831,0.15626182,95447.0,95437.0,0.01179944]
[1736319672133,0.15626182,95447.0,95430.0,0.4698]
[1736319672134,0.3608,95445.0,95431.0,0.052401]
[1736319672333,0.10563111,95441.0,95428.0,0.3608]
[1736319672831,0.3608,95434.0,95426.0,0.01165217]
[1736319673033,0.2846,95433.0,95422.0,0.052406]
[1736319673339,0.44234473,95433.0,95422.0,0.052406]
[1736319673533,0.44234473,95433.0,95413.0,0.4698]
[1736319673534,0.44234473,95433.0,95424.0,0.052405]
[1736319673742,0.44234473,95433.0,95413.0,0.4698]
[1736319674031,0.3608,95424.0,95417.0,0.0118302]
[1736319674337,0.3608,95424.0,95409.0,0.3608]
[1736319674535,0.15616561,95423.0,95421.0,0.3608]
[1736319674831,0.15616561,95432.0,95421.0,0.413206]
[1736319675232,0.15764772,95422.0,95421.0,0.413206]
[1736319675428,0.15764772,95431.0,95421.0,0.3608]
[1736319675636,0.15764772,95431.0,95423.0,0.052405]
[1736319675828,0.15764772,95432.0,95423.0,0.052405]
[1736319676028,0.2846,95433.0,95423.0,0.052405]
[1736319676243,0.15654973,95430.0,95423.0,0.052405]
[1736319676448,0.15654973,95431.0,95423.0,0.052405]
[1736319676628,0.15654973,95431.0,95421.0,0.3608]
[1736319676629,0.2846,95433.0,95426.0,0.052404]
[1736319676939,0.15654973,95429.0,95426.0,0.052404]
[1736319677239,0.2846,95433.0,95426.0,0.052404]
[1736319677437,0.15647551,95428.0,95426.0,0.052404]
[1736319677634,0.15647551,95429.0,95428.0,0.052403]
[1736319677837,0.2853,95452.0,95430.0,0.052402]
[1736319678033,0.2853,95452.0,95443.0,0.3608]
[1736319678237,0.44209397,95452.0,95443.0,0.3608]
[1736319678848,0.44209397,95452.0,95444.0,0.052394]
[1736319679544,0.44209397,95452.0,95443.0,0.3608]
[1736319679738,0.44209397,95452.0,95446.0,0.052393]
[1736319681446,0.31249945,95450.0,95426.0,0.052404]
[1736319681638,0.15826031,95440.0,95423.0,0.37239972]
[1736319682028,0.15657829,95439.0,95423.0,0.01159972]
[1736319682233,0.15657829,95439.0,95421.0,0.3608]
[1736319682440,0.3608,95422.0,95398.0,0.052419]
[1736319682662,0.3608,95412.0,95398.0,0.052419]
[1736319683142,0.51731584,95412.0,95406.0,0.01150015]
[1736319683539,0.15651584,95412.0,95406.0,0.01150015]
[1736319683943,0.45027985,95419.0,95406.0,0.01150015]
[1736319684150,0.15747985,95412.0,95406.0,0.01150015]
[1736319684441,0.3608,95413.0,95392.0,0.3608]
[1736319684645,0.3608,95400.0,95392.0,0.3608]
[1736319684943,0.3608,95413.0,95392.0,0.3608]
[1736319684944,0.15633351,95399.0,95392.0,0.3608]
[1736319685336,0.15784261,95401.0,95392.0,0.3608]
[1736319685638,0.3608,95405.0,95392.0,0.3608]
[1736319685639,0.15784261,95398.0,95392.0,0.3608]
[1736319685835,0.15784261,95398.0,95386.0,0.3608]
[1736319686038,0.3608,95397.0,95386.0,0.3608]
[1736319686343,0.51840462,95397.0,95386.0,0.3608]
[1736319686643,0.3608,95397.0,95386.0,0.3608]
[1736319686842,0.15760462,95396.0,95386.0,0.3608]
[1736319687436,0.31249945,95391.0,95386.0,0.3608]
[1736319687633,0.2864,95390.0,95386.0,0.3608]
[1736319687846,0.44404462,95390.0,95386.0,0.3608]
[1736319689750,0.15764462,95390.0,95386.0,0.3608]
[1736319690049,0.15764462,95390.0,95387.0,0.052425]
[1736319690236,0.15819231,95394.0,95386.0,0.3608]
[1736319690432,0.15816973,95389.0,95386.0,0.3608]
[1736319690636,0.15816973,95393.0,95389.0,0.052424]
[1736319691140,0.15816973,95395.0,95389.0,0.052424]
[1736319691341,0.15816973,95395.0,95394.0,0.3608]
[1736319691549,0.2871,95412.0,95394.0,0.3608]
[1736319691550,0.156778,95399.0,95394.0,0.3608]
[1736319691755,0.156778,95395.0,95394.0,0.3608]
[1736319692044,0.2871,95412.0,95394.0,0.3608]
[1736319692348,0.156778,95402.0,95394.0,0.3608]
[1736319692643,0.3608,95397.0,95386.0,0.37289721]
[1736319693049,0.15645046,95396.0,95386.0,0.37289721]
[1736319693937,0.15645046,95396.0,95386.0,0.3608]
[1736319694138,0.3068,95395.0,95386.0,0.3608]
[1736319694545,0.15764381,95394.0,95386.0,0.3608]
[1736319694848,0.3608,95387.0,95372.0,0.36237267]
[1736319695047,0.3006,95386.0,95372.0,0.36237267]
[1736319695353,0.45824381,95386.0,95372.0,0.36237267]
[1736319695551,0.15764381,95386.0,95372.0,0.36237267]
[1736319695747,0.15764381,95386.0,95372.0,0.37464115]
[1736319695954,0.15764381,95386.0,95377.0,0.052431]
[1736319696147,0.15764381,95386.0,95372.0,0.37464115]
[1736319696148,0.14764381,95386.0,95372.0,0.37464115]
[1736319696450,0.3006,95385.0,95372.0,0.00157267]
[1736319696754,0.3608,95377.0,95372.0,0.00157267]
[1736319698050,0.3608,95387.0,95376.0,0.3608]
[1736319698239,0.3608,95387.0,95379.0,0.05243]
[1736319698439,0.3608,95387.0,95377.0,0.15826031]
[1736319698644,0.3608,95395.0,95388.0,0.052425]
[1736319698856,0.3608,95395.0,95392.0,0.052422]
[1736319699148,0.3608,95404.0,95387.0,0.052425]
[1736319699362,0.3608,95404.0,95384.0,0.3608]
[1736319699749,0.3608,95404.0,95379.0,0.52303]
[1736319700251,0.3608,95404.0,95379.0,0.52247]
[1736319700653,0.3608,95404.0,95380.0,0.15826031]
[1736319700949,0.3608,95404.0,95386.0,0.413226]
[1736319701152,0.3608,95404.0,95390.0,0.15826031]
[1736319701650,0.2993,95412.0,95390.0,0.15826031]
[1736319701651,0.2993,95412.0,95399.0,0.052419]
[1736319701855,0.2993,95412.0,95400.0,0.3001]
[1736319702059,0.2993,95412.0,95397.0,0.3608]
[1736319702250,0.3608,95404.0,95397.0,0.3608]
[1736319702440,0.3608,95404.0,95387.0,0.6034]
[1736319703056,0.3608,95404.0,95387.0,0.655825]
[1736319703445,0.3608,95396.0,95387.0,0.01175027]
[1736319703751,0.3608,95396.0,95378.0,0.05243]
[1736319703951,0.3608,95396.0,95374.0,0.3608]
[1736319703952,0.3055,95395.0,95374.0,0.3608]
[1736319704153,0.3055,95395.0,95381.0,0.01176349]
[1736319706150,0.3055,95395.0,95383.0,0.052427]
[1736319706859,0.3608,95402.0,95386.0,0.413226]
[1736319707155,0.3608,95402.0,95386.0,0.3608]
[1736319707753,0.3608,95402.0,95381.0,0.06419149]
[1736319707954,0.3608,95402.0,95383.0,0.052427]
[1736319708151,0.3608,95392.0,95383.0,0.052427]
[1736319708351,0.3608,95392.0,95379.0,0.4706]
[1736319708547,0.3608,95392.0,95384.0,0.052427]
[1736319709551,0.3608,95392.0,95383.0,0.3608]
[1736319709948,0.67329945,95392.0,95379.0,0.4706]
[1736319710254,0.3608,95380.0,95356.0,0.3608]
[1736319710449,0.8663,95379.0,95356.0,0.3608]
[1736319710655,0.3608,95366.0,95356.0,0.3608]
[1736319711160,0.3608,95366.0,95356.0,0.413242]
[1736319711347,0.3608,95366.0,95356.0,0.3608]
[1736319712153,0.3608,95357.0,95352.0,0.00157321]
[1736319712360,0.2956,95356.0,95352.0,0.00157321]
[1736319712861,0.2881,95355.0,95352.0,0.00157321]
[1736319714252,0.2956,95356.0,95352.0,0.00157321]
[1736319720664,0.3087,95355.0,95336.0,0.3608]
[1736319720866,0.3608,95345.0,95336.0,0.3608]
[1736319722563,0.3608,95345.0,95336.0,0.012122]
[1736319722761,0.3608,95345.0,95333.0,0.57534]
[1736319722962,0.3608,95345.0,95333.0,0.5747]
[1736319723666,0.3608,95345.0,95324.0,0.3007]
[1736319723967,0.3072,95344.0,95324.0,0.3007]
[1736319724168,0.3072,95344.0,95321.0,0.2858]
[1736319724470,0.15826031,95340.0,95323.0,0.3725566]
[1736319724657,0.3072,95344.0,95323.0,0.3725566]
[1736319724868,0.3072,95344.0,95330.0,0.15826031]
[1736319725159,0.3608,95345.0,95325.0,0.052459]
[1736319725460,0.3608,95345.0,95323.0,0.3725566]
[1736319728069,0.15826031,95340.0,95323.0,0.3725566]
[1736319728267,0.3608,95337.0,95323.0,0.3725566]
[1736319728466,0.3608,95326.0,95314.0,0.0006]
[1736319728662,0.5999,95325.0,95305.0,0.3608]
[1736319729869,0.5999,95325.0,95305.0,0.41327]
[1736319730173,0.2956,95325.0,95307.0,0.052469]
[1736319730480,0.3608,95337.0,95305.0,0.3608]
[1736319730481,0.052442,95358.0,95324.0,0.3608]
[1736319730675,0.3608,95357.0,95344.0,0.3608]
[1736319730976,0.3608,95357.0,95333.0,0.3608]
[1736319730977,0.3608,95348.0,95333.0,0.3608]
[1736319731375,0.3608,95336.0,95325.0,0.2928]
[1736319731575,0.3608,95336.0,95322.0,0.00056]
[1736319731576,0.3044,95335.0,95322.0,0.00056]
[1736319731778,0.90289945,95335.0,95310.0,0.413268]
[1736319731982,0.5904,95335.0,95310.0,0.57152831]
[1736319732178,0.5904,95335.0,95310.0,0.57212831]
[1736319732179,0.31249945,95334.0,95310.0,0.57212831]
[1736319732678,0.59124,95335.0,95316.0,0.05403748]
[1736319732864,0.3044,95335.0,95325.0,0.3608]
[1736319733269,0.052458,95329.0,95325.0,0.3608]
[1736319733479,0.31249945,95325.0,95316.0,0.00157348]
[1736319733682,0.3608,95318.0,95310.0,0.3608]
[1736319733976,0.30264,95324.0,95310.0,0.413267]
[1736319734190,0.3608,95327.0,95318.0,0.3608]
[1736319736782,0.23155976,95330.0,95326.0,0.3608]
[1736319737182,0.15826031,95330.0,95326.0,0.3608]
[1736319737384,0.052456,95332.0,95326.0,0.3608]
[1736319738090,0.052457,95331.0,95326.0,0.3608]
[1736319738388,0.07329946,95330.0,95326.0,0.3608]
[1736319738786,0.052457,95331.0,95326.0,0.3608]
[1736319738981,0.07329946,95333.0,95326.0,0.3608]
[1736319739380,0.3018,95334.0,95326.0,0.3608]
[1736319739585,0.07329946,95330.0,95326.0,0.3608]
[1736319739783,0.3018,95334.0,95326.0,0.3608]
[1736319740186,0.07329946,95329.0,95326.0,0.3608]
[1736319740986,0.3018,95334.0,95326.0,0.3608]
[1736319741882,0.052457,95330.0,95326.0,0.3608]
[1736319742080,0.07329946,95329.0,95326.0,0.3608]
[1736319742288,0.07329946,95327.0,95326.0,0.3608]
[1736319743083,0.07329946,95327.0,95318.0,0.3608]
[1736319743890,0.12575846,95327.0,95318.0,0.3608]
[1736319744690,0.10577077,95328.0,95326.0,0.3608]
[1736319744894,0.3018,95334.0,95326.0,0.3608]
[1736319745391,0.3044,95335.0,95326.0,0.3608]
[1736319745984,0.07329946,95327.0,95326.0,0.3608]
[1736319746185,0.3044,95335.0,95316.0,0.3608]
[1736319746384,0.10577077,95326.0,95316.0,0.3608]
[1736319747699,0.10577077,95326.0,95324.0,0.3608]
[1736319747888,0.10577077,95334.0,95324.0,0.3608]
[1736319748990,0.3044,95335.0,95324.0,0.3608]
[1736319749381,0.3044,95335.0,95325.0,0.2942]
[1736319749597,0.10577077,95340.0,95334.0,0.3608]
[1736319751594,0.07329946,95349.0,95335.0,0.3608]
[1736319751796,0.10577077,95350.0,95347.0,0.3608]
[1736319752096,0.29682,95354.0,95347.0,0.3608]
[1736319752295,0.10577077,95357.0,95347.0,0.3608]